fUST/lending_fUST_20250716
["ID","MTS","AMOUNT","RATE_DAILY","PERIOD"]
[372430386,1752641453719,-775.21,0.00024109,2]
[372430387,1752641453729,-3136.04,0.00024109,2]
[372430388,1752641453739,-744.13,0.00024109,2]
[372430389,1752641453749,-1599.16,0.00024109,2]
[372430390,1752641453759,-187.42274,0.00024109,7]
[372430391,1752641453770,-462.4,0.00024109,2]
[372430392,1752641453780,-187.42274,0.00024109,7]
[372430393,1752641453791,-151.0,0.00024109,7]
[372430394,1752641453800,-1140.79,0.00024109,2]
[372430395,1752641453810,-821.83,0.00024109,2]
[372430396,1752641453819,-1334.44,0.00024109,2]
[372430397,1752641453830,-151.0,0.00024109,7]
[372430398,1752641453839,-151.0,0.00024109,7]
[372430399,1752641453848,-717.73,0.00024109,2]
[372430400,1752641453858,-1447.74,0.00024109,2]
[372430401,1752641453867,-1945.12,0.00024109,2]
[372430402,1752641453877,-1188.22,0.00024109,2]
[372430403,1752641453886,-857.59,0.00024109,2]
[372430404,1752641453896,-697.11,0.00024109,2]
[372430405,1752641453906,-460.0,0.00024109,2]
[372430406,1752641453915,-840.78,0.00024109,2]
[372430407,1752641453925,-782.0,0.0002411,2]
[372430408,1752641453935,-365.0,0.00024159,2]
[372430409,1752641453947,-162.0,0.00024164,7]
[372430410,1752641453956,-151.714253,0.000242,7]
[372430411,1752641453966,-151.0,0.00024212,6]
[372430412,1752641453976,-776.47953469,0.00024274,2]
[372430413,1752641453985,-151.0,0.0002428,7]
[372430414,1752641453994,-151.0,0.000243,9]
[372430415,1752641454004,-215.5496034,0.000243,3]
[372430416,1752641454014,-160.0,0.000243,3]
[372430417,1752641454023,-520.85416667,0.000243,3]
[372430418,1752641454033,-162.95973128,0.00024329,2]
[372430419,1752641454043,-223.0315306,0.00024339,2]
[372430420,1752641454053,-1291.93384875,0.00024371,2]
[372430421,1752641454063,-151.0,0.00024383,7]
[372430422,1752641454072,-151.0,0.00024383,7]
[372430423,1752641454082,-159.876379,0.00024383,7]
[372430424,1752641454092,-159.876379,0.00024383,7]
[372430425,1752641454101,-3083.07,0.00024383,2]
[372430426,1752641454111,-775.21,0.00024383,2]
[372430427,1752641454121,-3136.04,0.00024383,2]
[372430428,1752641454131,-744.13,0.00024383,2]
[372430429,1752641454140,-1599.16,0.00024383,2]
[372430430,1752641454150,-462.4,0.00024383,2]
[372430431,1752641454159,-1140.79,0.00024383,2]
[372430432,1752641454170,-821.83,0.00024383,2]
[372430433,1752641454180,-1334.44,0.00024383,2]
[372430434,1752641454189,-717.73,0.00024383,2]
[372430435,1752641454199,-1447.74,0.00024383,2]
[372430436,1752641454210,-1945.12,0.00024383,2]
[372430437,1752641454220,-1188.22,0.00024383,2]
[372430438,1752641454230,-857.59,0.00024383,2]
[372430439,1752641454240,-697.11,0.00024383,2]
[372430440,1752641454250,-333.73093753,0.00024383,2]
[372430441,1752641454260,-840.78,0.00024383,2]
[372430442,1752641454270,-782.0,0.00024384,2]
[372430443,1752641454281,-512.851558,0.0002439,8]
[372430444,1752641454291,-19042.88,0.000244,7]
[372430445,1752641454301,-151.0,0.00024471,7]
[372430446,1752641454312,-1053.20757664,0.0002455,2]
[372430447,1752641454321,-860.0,0.00024561,2]
[372430448,1752641454331,-1595.0,0.00024584,2]
[372430449,1752641454341,-1595.0,0.00024585,2]
[372430450,1752641454350,-209.795093,0.000246,7]
[372430451,1752641454359,-209.795093,0.000246,7]
[372430452,1752641454369,-151.0,0.000246,7]
[372430453,1752641454378,-226.47034,0.000246,7]
[372430454,1752641454388,-151.0,0.000246,7]
[372430455,1752641454398,-226.47034,0.000246,7]
[372430456,1752641454407,-1085.31872867,0.00024604,2]
[372430457,1752641454417,-429.1687796,0.0002463,2]
[372430458,1752641454428,-251142.51199426,0.0002465,2]
[372430459,1752641454437,-151.448955,0.0002465,7]
[372430460,1752641454446,-151.398223,0.0002465,7]
[372430461,1752641454456,-151.0,0.0002465,7]
[372430462,1752641454465,-151.0,0.0002465,7]
[372430463,1752641454475,-151.0,0.0002465,7]
[372430464,1752641454485,-151.0,0.0002465,7]
[372430465,1752641454495,-153.256803,0.0002465,7]
[372430466,1752641454507,-159.876379,0.0002465,7]
[372430467,1752641454516,-151.0,0.0002465,7]
[372430468,1752641454525,-159.876379,0.0002465,7]
[372430469,1752641454535,-151.0,0.0002465,7]
[372430470,1752641454545,-151.0,0.0002465,7]
[372430471,1752641454554,-153.82194,0.0002465,7]
[372430472,1752641454564,-648.926144,0.0002465,7]
[372430473,1752641454574,-648.926144,0.0002465,7]
[372430474,1752641454583,-151.0,0.0002465,7]
[372430475,1752641454593,-151.0,0.0002465,7]
[372430476,1752641454602,-168.048254,0.0002465,7]
[372430477,1752641454611,-168.048254,0.0002465,7]
[372430478,1752641454620,-151.0,0.0002465,7]
[372430479,1752641454629,-151.0,0.0002465,7]
[372430480,1752641454638,-383.166901,0.0002465,7]
[372430481,1752641454648,-383.166901,0.0002465,7]
[372430482,1752641454657,-209.795093,0.0002465,7]
[372430483,1752641454667,-209.795093,0.0002465,7]
[372430484,1752641454677,-151.0,0.0002465,7]
[372430485,1752641454686,-226.47034,0.0002465,7]
[372430486,1752641454695,-151.0,0.0002465,7]
[372430487,1752641454706,-226.47034,0.0002465,7]
[372430488,1752641454715,-187.42274,0.0002465,7]
[372430489,1752641454805,-187.42274,0.0002465,7]
[372430490,1752641454815,-151.0,0.0002465,7]
[372430491,1752641454825,-151.0,0.0002465,7]
[372430492,1752641454834,-151.0,0.0002465,7]
[372430493,1752641454844,-151.0,0.0002465,7]
[372430494,1752641454853,-151.0,0.0002465,7]
[372430495,1752641454862,-212.686311,0.0002465,7]
[372430496,1752641454872,-151.0,0.0002465,7]
[372430497,1752641454882,-151.0,0.0002465,7]
[372430498,1752641454892,-2866.82915156,0.00024657,2]
[372430499,1752641454902,-2599.48168663,0.00024657,2]
[372430500,1752641454912,-819.40351298,0.00024657,2]
[372430501,1752641454923,-3083.07,0.00024657,2]
[372430502,1752641454932,-775.21,0.00024657,2]
[372430503,1752641454942,-3136.04,0.00024657,2]
[372430504,1752641454951,-744.13,0.00024657,2]
[372430505,1752641454960,-1599.16,0.00024657,2]
[372430506,1752641454971,-462.4,0.00024657,2]
[372430507,1752641454981,-1140.79,0.00024657,2]
[372430508,1752641454990,-821.83,0.00024657,2]
[372430509,1752641454999,-1334.44,0.00024657,2]
[372430510,1752641455009,-717.73,0.00024657,2]
[372430511,1752641455018,-1447.74,0.00024657,2]
[372430512,1752641455028,-1945.12,0.00024657,2]
[372430513,1752641455037,-1188.22,0.00024657,2]
[372430514,1752641455047,-857.59,0.00024657,2]
[372430515,1752641455057,-697.11,0.00024657,2]
[372430516,1752641455067,-840.78,0.00024657,2]
[372430517,1752641455078,-185.7056492,0.00024658,2]
[372430518,1752641455088,-782.0,0.00024658,2]
[372430519,1752641455097,-500.0,0.00024658,2]
[372430520,1752641455107,-1053.2075766,0.00024658,2]
[372430521,1752641455116,-365.0,0.00024669,2]
[372430522,1752641455125,-151.0,0.000247,5]
[372430523,1752641455134,-800.0,0.00024705,2]
[372430524,1752641455144,-1858.0,0.00024715,2]
[372430525,1752641455153,-151.0,0.0002473,7]
[372430526,1752641455163,-1053.2075766,0.00024767,2]
[372430527,1752641455173,-800.0,0.00024773,2]
[372430528,1752641455182,-361.4899892,0.00024795,2]
[372430529,1752641455192,-321.4453883,0.00024795,2]
[372430530,1752641455201,-153.0,0.00024795,2]
[372430531,1752641455213,-1153.7302062,0.00024795,2]
[372430532,1752641455222,-456.3646118,0.00024795,2]
[372430533,1752641455232,-153.0,0.00024795,2]
[372430534,1752641455242,-153.0,0.00024795,2]
[372430535,1752641455252,-160.49818141,0.00024797,3]
[372430536,1752641455261,-1751.0,0.00024797,3]
[372430537,1752641455270,-1751.0,0.00024797,3]
[372430538,1752641455280,-1751.0,0.00024797,3]
[372430539,1752641455289,-154.57262037,0.00024797,3]
[372430540,1752641455304,-1751.0,0.00024797,3]
[372430541,1752641455315,-1751.0,0.00024797,3]
[372430542,1752641455326,-1751.0,0.00024797,3]
[372430543,1752641455335,-1751.0,0.00024797,3]
[372430544,1752641455345,-1751.0,0.00024797,3]
[372430545,1752641455354,-1751.0,0.00024797,3]
[372430546,1752641455363,-1751.0,0.00024797,3]
[372430547,1752641455373,-1751.0,0.00024797,3]
[372430548,1752641455384,-1751.0,0.00024797,3]
[372430549,1752641455394,-1751.0,0.00024797,3]
[372430550,1752641455404,-318.0,0.00024797,3]
[372430551,1752641455414,-1751.0,0.00024797,3]
[372430552,1752641455426,-1751.0,0.00024797,3]
[372430553,1752641455436,-318.0,0.00024797,3]
[372430554,1752641455445,-327.95017534,0.00024797,3]
[372430555,1752641455455,-1791.10004566,0.00024797,3]
[372430556,1752641455464,-151.0,0.000248,10]
[372430557,1752641455474,-151.0,0.000248,6]
[372430558,1752641455483,-2203.11,0.000248,7]
[372430559,1752641455495,-171.311487,0.000248,2]
[372430560,1752641455507,-12605.49131908,0.000248,3]
[372430561,1752641455517,-1595.0,0.00024842,2]
[372430562,1752641455527,-1595.0,0.0002487,2]
[372430563,1752641455536,-1053.2075766,0.00024875,2]
[372430564,1752641455548,-647.0,0.00024876,2]
[372430565,1752641455559,-2155.0,0.00024876,2]
[372430566,1752641455567,-970.562,0.00024876,2]
[372430567,1752641455578,-151.0,0.0002488,7]
[372430568,1752641455587,-151.0,0.0002488,7]
[372430569,1752641455597,-151.0,0.0002488,7]
[372430570,1752641455606,-1858.0,0.00024885,2]
[372430571,1752641455616,-2639.06787564,0.00024888,2]
[372430572,1752641455625,-500.0,0.00024889,10]
[372430573,1752641455634,-146179.11630504,0.0002489,4]
[372430574,1752641455840,-460.0,0.00019178,2]
[372430575,1752641455850,-460.0,0.00019178,2]
[372430576,1752641455860,-460.0,0.00019178,2]
[372430577,1752641455870,-460.0,0.00019178,2]
[372430578,1752641455879,-604.28,0.00019452,2]
[372430579,1752641455889,-460.0,0.00019726,2]
[372430580,1752641455901,-460.0,0.0002,2]
[372430581,1752641455911,-460.0,0.00020273,2]
[372430582,1752641455921,-460.0,0.00020273,2]
[372430583,1752641455931,-178.53,0.00020547,2]
[372430584,1752641455940,-460.0,0.00020547,2]
[372430585,1752641455950,-460.0,0.00020821,2]
[372430586,1752641455959,-436.7,0.00021095,2]
[372430587,1752641455968,-193.06127624,0.00021601,2]
[372430588,1752641455978,-429.1687796,0.00023671,2]
[372430589,1752641455987,-1000.0,0.000238,2]
[372430590,1752641455996,-1000.0,0.000243,2]
[372430591,1752641456006,-1000.0,0.000248,2]
[372430592,1752641456015,-84682.84014706,0.0002489,4]
[372430593,1752641456069,-460.0,0.00019178,2]
[372430594,1752641456078,-56.95631384,0.00021918,2]
[372430595,1752641456090,-96.01283416,0.00021918,2]
[372430596,1752641456099,-152.969148,0.00022465,7]
[372430597,1752641456109,-1002.12086,0.000228,2]
[372430598,1752641456118,-1000.0,0.000233,2]
[372430599,1752641456127,-247.364,0.00024876,2]
[372430600,1752641456137,-67267.50809619,0.0002489,4]
[372430601,1752641456148,-7573.63046947,0.0002489,4]
[372430602,1752641622202,180.33,0.00024,120]
[372430605,1752641987962,510.0,0.000181,2]
[372430606,1752641988281,7078.43859569,0.00027397,120]
[372430610,1752642204286,189.325561,0.00018098,2]
[372430613,1752642332135,-300.0,0.00018994,2]
[372430614,1752642332157,-300.0,0.00018994,2]
[372430615,1752642332180,-1200.0,0.00018994,2]
[372430616,1752642332202,-300.0,0.00018994,2]
[372430617,1752642332225,-316.32637945,0.00018995,2]
[372430618,1752642355094,-183.67362055,0.00018995,2]
[372430619,1752642355128,-500.0,0.00018995,2]
[372430620,1752642355152,-500.0,0.00018995,2]
[372430621,1752642355177,-162.95087797,0.00018995,2]
[372430622,1752642355199,-433.62415666,0.00018995,2]
[372430623,1752642355222,-219.66807773,0.00018995,2]
[372430624,1752642436609,-303.21184273,0.000189,2]
[372430625,1752642436631,-500.0,0.00018994,2]
[372430626,1752642436652,-292.1079245,0.00018994,2]
[372430627,1752642443155,-207.8920755,0.00018994,2]
[372430628,1752642443179,-500.0,0.00018994,2]
[372430629,1752642443202,-500.0,0.00018994,2]
[372430630,1752642443224,-500.0,0.00018994,2]
[372430631,1752642443247,-500.0,0.00018994,2]
[372430632,1752642443269,-500.0,0.00018994,2]
[372430633,1752642443291,-279.02584694,0.00018994,2]
[372430634,1752642443314,-500.0,0.00018994,2]
[372430635,1752642443337,-427.64281296,0.00018994,2]
[372430636,1752642443362,-500.0,0.00018994,2]
[372430637,1752642443383,-500.0,0.00018994,2]
[372430638,1752642443407,-500.0,0.00018994,2]
[372430639,1752642443429,-500.0,0.00018994,2]
[372430640,1752642443450,-406.56768943,0.00018994,2]
[372430641,1752642443473,-500.0,0.00018994,2]
[372430642,1752642443494,-500.0,0.00018994,2]
[372430643,1752642443514,-500.0,0.00018994,2]
[372430644,1752642443537,-500.0,0.00018994,2]
[372430645,1752642443560,-500.0,0.00018994,2]
[372430646,1752642443584,-500.0,0.00018994,2]
[372430647,1752642443608,-500.0,0.00018994,2]
[372430648,1752642443632,-500.0,0.00018994,2]
[372430649,1752642443657,-237.83614128,0.00018994,2]
[372430650,1752642449095,-262.16385872,0.00018994,2]
[372430651,1752642449121,-500.0,0.00018994,2]
[372430652,1752642449143,-479.66022714,0.00018994,2]
[372430653,1752642452079,-20.33977286,0.00018994,2]
[372430654,1752642452103,-500.0,0.00018994,2]
[372430655,1752642452128,-444.72816226,0.00018994,2]
[372430656,1752642452153,-500.0,0.00018994,2]
[372430657,1752642452174,-500.0,0.00018994,2]
[372430658,1752642452195,-500.0,0.00018994,2]
[372430659,1752642452216,-500.0,0.00018994,2]
[372430660,1752642452237,-500.0,0.00018994,2]
[372430661,1752642452258,-500.0,0.00018994,2]
[372430662,1752642452278,-500.0,0.00018994,2]
[372430663,1752642452301,-500.0,0.00018994,2]
[372430664,1752642452321,-500.0,0.00018994,2]
[372430665,1752642452341,-500.0,0.00018994,2]
[372430666,1752642452362,-500.0,0.00018994,2]
[372430667,1752642452382,-500.0,0.00018994,2]
[372430668,1752642452404,-500.0,0.00018994,2]
[372430669,1752642452426,-361.08021978,0.00018994,2]
[372430670,1752642452446,-500.0,0.00018994,2]
[372430671,1752642452467,-500.0,0.00018994,2]
[372430672,1752642452487,-500.0,0.00018994,2]
[372430673,1752642452506,-453.20628482,0.00018994,2]
[372430685,1752642521437,293.075071,0.00013699,2]
[372430687,1752642526915,24900.0,0.00018079,2]
[372430694,1752642631805,-196.6824309,0.00018294,2]
[372430695,1752642631816,-1052.36743043,0.00018994,2]
[372430696,1752642631829,-147.63256957,0.00018994,2]
[372430697,1752642631840,-300.0,0.00019,2]
[372430698,1752642631849,-34.75000528,0.00019,2]
[372430699,1752642631874,-1165.24999472,0.00019,2]
[372430700,1752642631883,-1170.33503817,0.00019068,2]
[372430701,1752642631893,-198.19,0.00019068,3]
[372430702,1752642631902,-594.61,0.00019068,3]
[372430704,1752642631911,-7014.85938201,0.00019078,2]
[372430705,1752642632038,-4085.93262678,0.00019078,2]
[372430706,1752642632049,-2568.12682041,0.00019078,2]
[372430707,1752642632061,-699.856,0.00019078,2]
[372430708,1752642632072,-721.99106321,0.00019078,2]
[372430710,1752642637819,-500.0,0.00019077,2]
[372430711,1752642637830,-500.0,0.00019077,2]
[372430712,1752642637840,-500.0,0.00019077,2]
[372430713,1752642637855,-500.0,0.00019077,2]
[372430714,1752642637868,-484.56446887,0.00019077,2]
[372430715,1752642637883,-636.58715989,0.00019077,2]
[372430716,1752642637898,-500.0,0.00019077,2]
[372430717,1752642637907,-2773.53056588,0.00019078,2]
[372430718,1752642637919,-500.0,0.00019078,2]
[372430719,1752642637931,-1580.98448565,0.00019078,2]
[372430720,1752642637946,-15243.5,0.00019078,2]
[372430721,1752642637963,-146541.18477949,0.00019078,2]
[372430722,1752642637976,-438.81,0.00019168,3]
[372430723,1752642637988,-219.41,0.00019168,3]
[372430724,1752642637998,-658.24,0.00019168,3]
[372430725,1752642638008,-322.76,0.00019168,3]
[372430726,1752642638018,-396.38,0.00019168,3]
[372430727,1752642638027,-327.239432,0.00019173,2]
[372430728,1752642638037,-500.0,0.00019173,2]
[372430729,1752642638046,-408.88614509,0.00019173,2]
[372430730,1752642638057,-500.0,0.00019173,2]
[372430731,1752642638067,-325.67799537,0.00019173,2]
[372430732,1752642638078,-460.0,0.00019178,2]
[372430733,1752642638089,-461.39993285,0.00019178,2]
[372430734,1752642638099,-460.0,0.00019178,2]
[372430735,1752642638108,-460.0,0.00019178,2]
[372430736,1752642638118,-460.0,0.00019178,2]
[372430737,1752642638127,-460.0,0.00019178,2]
[372430738,1752642638137,-460.0,0.00019178,2]
[372430739,1752642638147,-462.48850329,0.00019178,2]
[372430740,1752642638159,-460.0,0.00019178,2]
[372430741,1752642638171,-460.0,0.00019178,2]
[372430742,1752642638180,-389.08780712,0.00019178,2]
[372430743,1752642638190,-460.0,0.00019178,2]
[372430744,1752642638200,-460.0,0.00019178,2]
[372430745,1752642638210,-462.38852151,0.00019178,2]
[372430746,1752642638221,-460.0,0.00019178,2]
[372430747,1752642638231,-460.0,0.00019178,2]
[372430748,1752642638242,-296.25392541,0.00019178,2]
[372430749,1752642638252,-460.0,0.00019178,2]
[372430750,1752642638261,-460.0,0.00019178,2]
[372430751,1752642638271,-463.08147658,0.00019178,2]
[372430752,1752642638281,-460.0,0.00019178,2]
[372430753,1752642638290,-460.0,0.00019178,2]
[372430754,1752642638300,-460.0,0.00019178,2]
[372430755,1752642638310,-460.0,0.00019178,2]
[372430756,1752642638323,-460.0,0.00019178,2]
[372430757,1752642638332,-460.0,0.00019178,2]
[372430758,1752642638343,-460.0,0.00019178,2]
[372430759,1752642638353,-460.0,0.00019178,2]
[372430760,1752642638363,-460.0,0.00019178,2]
[372430761,1752642638373,-502.29901836,0.00019178,2]
[372430762,1752642638383,-460.0,0.00019178,2]
[372430763,1752642638392,-460.0,0.00019178,2]
[372430764,1752642638401,-460.0,0.00019178,2]
[372430765,1752642638411,-460.0,0.00019178,2]
[372430766,1752642638420,-460.0,0.00019178,2]
[372430767,1752642638432,-463.67410782,0.00019178,2]
[372430768,1752642638442,-461.36559025,0.00019178,2]
[372430769,1752642638452,-460.0,0.00019178,2]
[372430770,1752642638463,-460.0,0.00019178,2]
[372430771,1752642638475,-460.0,0.00019178,2]
[372430772,1752642638486,-532.65409379,0.00019178,2]
[372430773,1752642638495,-309.64600588,0.00019178,2]
[372430774,1752642638505,-460.0,0.00019178,2]
[372430775,1752642638515,-460.0,0.00019178,2]
[372430776,1752642638524,-460.0,0.00019178,2]
[372430777,1752642638534,-460.0,0.00019178,2]
[372430778,1752642638544,-465.18198624,0.00019178,2]
[372430779,1752642638553,-460.0,0.00019178,2]
[372430780,1752642638563,-460.0,0.00019178,2]
[372430781,1752642638573,-460.0,0.00019178,2]
[372430782,1752642638583,-460.0,0.00019178,2]
[372430783,1752642638592,-460.0,0.00019178,2]
[372430784,1752642638601,-460.0,0.00019178,2]
[372430785,1752642638611,-460.0,0.00019178,2]
[372430786,1752642638621,-334.91696883,0.00019178,2]
[372430787,1752642638631,-500.0,0.00019178,2]
[372430788,1752642638640,-460.0,0.00019178,2]
[372430789,1752642638650,-460.0,0.00019178,2]
[372430790,1752642638659,-460.0,0.00019178,2]
[372430791,1752642638669,-460.0,0.00019178,2]
[372430792,1752642638678,-460.0,0.00019178,2]
[372430793,1752642638688,-460.0,0.00019178,2]
[372430794,1752642638697,-460.0,0.00019178,2]
[372430795,1752642638707,-460.0,0.00019178,2]
[372430796,1752642638717,-460.0,0.00019178,2]
[372430797,1752642638726,-460.0,0.00019178,2]
[372430798,1752642638737,-460.0,0.00019178,2]
[372430799,1752642638746,-460.0,0.00019178,2]
[372430800,1752642638756,-460.0,0.00019178,2]
[372430801,1752642638765,-460.0,0.00019178,2]
[372430802,1752642638775,-460.0,0.00019178,2]
[372430803,1752642638786,-460.0,0.00019178,2]
[372430804,1752642638796,-460.0,0.00019178,2]
[372430805,1752642638806,-462.6850279,0.00019178,2]
[372430806,1752642638815,-460.0,0.00019178,2]
[372430807,1752642638824,-460.0,0.00019178,2]
[372430808,1752642638834,-460.0,0.00019178,2]
[372430809,1752642638843,-460.0,0.00019178,2]
[372430810,1752642638853,-461.49506162,0.00019178,2]
[372430811,1752642638862,-460.0,0.00019178,2]
[372430812,1752642638872,-505.27191865,0.00019178,2]
[372430813,1752642638882,-460.0,0.00019178,2]
[372430814,1752642638892,-460.0,0.00019178,2]
[372430815,1752642638901,-201.94293289,0.00019178,2]
[372430816,1752642638911,-461.5561418,0.00019178,2]
[372430817,1752642638920,-460.0,0.00019178,2]
[372430818,1752642638930,-460.0,0.00019178,2]
[372430819,1752642638940,-460.0,0.00019178,2]
[372430820,1752642638950,-460.0,0.00019178,2]
[372430821,1752642638959,-460.0,0.00019178,2]
[372430822,1752642638969,-460.0,0.00019178,2]
[372430823,1752642638978,-460.0,0.00019178,2]
[372430824,1752642638988,-159.29412048,0.00019178,2]
[372430825,1752642638998,-460.0,0.00019178,2]
[372430826,1752642639007,-460.0,0.00019178,2]
[372430827,1752642639017,-460.0,0.00019178,2]
[372430828,1752642639026,-460.0,0.00019178,2]
[372430829,1752642639036,-460.0,0.00019178,2]
[372430830,1752642639046,-460.0,0.00019178,2]
[372430831,1752642639056,-460.0,0.00019178,2]
[372430832,1752642639065,-460.0,0.00019178,2]
[372430833,1752642639075,-463.0276002,0.00019178,2]
[372430834,1752642639084,-172.07575812,0.00019178,2]
[372430835,1752642639094,-198.66406679,0.00019178,2]
[372430836,1752642639104,-460.0,0.00019178,2]
[372430837,1752642639113,-460.0,0.00019178,2]
[372430838,1752642639123,-460.0,0.00019178,2]
[372430839,1752642639134,-460.0,0.00019178,2]
[372430840,1752642639144,-460.0,0.00019178,2]
[372430841,1752642639157,-460.0,0.00019178,2]
[372430842,1752642639167,-460.0,0.00019178,2]
[372430843,1752642639178,-460.0,0.00019178,2]
[372430844,1752642639190,-201.65035479,0.00019178,2]
[372430845,1752642639201,-460.0,0.00019178,2]
[372430847,1752642639211,-460.0,0.00019178,2]
[372430849,1752642639221,-568.26880508,0.00019178,2]
[372430850,1752642639233,-460.0,0.00019178,2]
[372430851,1752642639243,-460.0,0.00019178,2]
[372430852,1752642639252,-460.0,0.00019178,2]
[372430853,1752642639262,-460.0,0.00019178,2]
[372430855,1752642639272,-460.0,0.00019178,2]
[372430856,1752642639282,-460.0,0.00019178,2]
[372430857,1752642639291,-460.8011681,0.00019178,2]
[372430858,1752642639301,-460.0,0.00019178,2]
[372430859,1752642639310,-460.0,0.00019178,2]
[372430860,1752642639320,-460.0,0.00019178,2]
[372430861,1752642639332,-460.0,0.00019178,2]
[372430862,1752642639341,-460.0,0.00019178,2]
[372430863,1752642639352,-302.46241226,0.00019178,2]
[372430864,1752642639362,-460.0,0.00019178,2]
[372430865,1752642639372,-460.0,0.00019178,2]
[372430866,1752642639381,-464.00749561,0.00019178,2]
[372430867,1752642639390,-460.0,0.00019178,2]
[372430868,1752642639399,-461.83310505,0.00019178,2]
[372430869,1752642639409,-460.0,0.00019178,2]
[372430870,1752642639419,-465.56975451,0.00019178,2]
[372430871,1752642639428,-460.0,0.00019178,2]
[372430872,1752642639438,-410.73986995,0.00019178,2]
[372430873,1752642639448,-462.80659183,0.00019178,2]
[372430875,1752642639458,-460.0,0.00019178,2]
[372430876,1752642639468,-460.0,0.00019178,2]
[372430877,1752642639478,-460.0,0.00019178,2]
[372430878,1752642639488,-460.0,0.00019178,2]
[372430879,1752642639498,-460.0,0.00019178,2]
[372430883,1752642639619,-460.0,0.00019178,2]
[372430884,1752642639631,-460.0,0.00019178,2]
[372430885,1752642639640,-460.0,0.00019178,2]
[372430886,1752642639650,-460.0,0.00019178,2]
[372430887,1752642639661,-494.32975351,0.00019178,2]
[372430888,1752642639670,-460.0,0.00019178,2]
[372430889,1752642639679,-460.0,0.00019178,2]
[372430890,1752642639690,-462.60533867,0.00019178,2]
[372430891,1752642639701,-460.0,0.00019178,2]
[372430892,1752642639710,-460.0,0.00019178,2]
[372430893,1752642639722,-460.0,0.00019178,2]
[372430894,1752642639732,-460.0,0.00019178,2]
[372430895,1752642639742,-463.21267653,0.00019178,2]
[372430896,1752642639752,-551.56753009,0.00019178,2]
[372430898,1752642639762,-462.81455298,0.00019178,2]
[372430900,1752642639772,-460.0,0.00019178,2]
[372430902,1752642639781,-460.0,0.00019178,2]
[372430904,1752642639791,-460.0,0.00019178,2]
[372430906,1752642639801,-460.0,0.00019178,2]
[372430908,1752642639811,-460.0,0.00019178,2]
[372430910,1752642639822,-460.0,0.00019178,2]
[372430912,1752642639832,-460.0,0.00019178,2]
[372430914,1752642639842,-503.85243429,0.00019178,2]
[372430916,1752642639852,-460.0,0.00019178,2]
[372430919,1752642639862,-460.0,0.00019178,2]
[372430921,1752642639872,-460.0,0.00019178,2]
[372430922,1752642639882,-460.0,0.00019178,2]
[372430925,1752642639891,-463.22074043,0.00019178,2]
[372430927,1752642639901,-461.56600901,0.00019178,2]
[372430929,1752642639911,-460.0,0.00019178,2]
[372430931,1752642639920,-460.0,0.00019178,2]
[372430933,1752642639930,-460.0,0.00019178,2]
[372430935,1752642639939,-461.01650561,0.00019178,2]
[372430937,1752642639948,-460.0,0.00019178,2]
[372430939,1752642639957,-460.0,0.00019178,2]
[372430941,1752642639967,-460.0,0.00019178,2]
[372430942,1752642639977,-460.0,0.00019178,2]